bitfinex-derivatives/quotes_ETHF0:USTF0_20241228
["timestamp","ask_amount","ask_price","bid_price","bid_amount"]
[1735407244270,0.29468,3399.5,3399.0,0.29471]
[1735407244594,0.29469,3399.4,3399.2,0.2947]
[1735407244965,0.29468,3399.5,3399.3,0.29469]
[1735407245165,0.29468,3399.5,3399.4,0.29469]
[1735407245371,5.19048534,3399.6,3398.9,0.917]
[1735407245571,5.19048534,3399.6,3399.2,0.2947]
[1735407245572,0.29469,3399.4,3399.2,0.2947]
[1735407246065,0.29471,3399.2,3398.9,0.917]
[1735407246265,0.29471,3399.1,3398.9,1.21173]
[1735407246566,0.29471,3399.1,3398.9,0.917]
[1735407246764,5.92717534,3399.6,3398.9,0.917]
[1735407246765,0.29472,3399.0,3398.9,0.917]
[1735407247274,0.29474,3398.8,3398.7,3.2078]
[1735407249153,0.29474,3398.8,3398.0,0.73701]
[1735407249154,1.98268534,3398.8,3398.2,3.2078]
[1735407249158,0.29481,3398.0,3397.8,0.29482]
[1735407249316,0.29482,3397.9,3397.8,0.8778]
[1735407250971,0.73696,3398.3,3397.7,3.2078]
[1735407250972,0.29482,3397.8,3397.7,3.2078]
[1735407251170,3.2078,3398.9,3397.7,3.2078]
[1735407251393,0.29477,3398.5,3398.2,0.29478]
[1735407251569,0.29477,3398.5,3398.3,0.71638]
[1735407251875,3.2078,3398.9,3398.3,0.4216]
[1735407252090,3.50253,3398.9,3398.7,0.29474]
[1735407252468,3.50253,3398.9,3398.3,0.4216]
[1735407252469,3.2078,3398.9,3398.8,0.29474]
[1735407254176,0.29469,3399.4,3399.2,0.2947]
[1735407254467,3.2078,3399.7,3398.8,3.2078]
[1735407254689,3.2078,3399.7,3398.8,3.6612]
[1735407255078,1.203,3399.9,3399.3,3.2078]
[1735407255281,1.203,3399.9,3399.4,0.434]
[1735407255602,3.2078,3400.1,3399.4,0.434]
[1735407255871,0.29464,3400.0,3399.8,0.29465]
[1735407256074,0.29463,3400.0,3399.8,0.29465]
[1735407256289,3.2078,3400.1,3399.5,0.4475]
[1735407256486,0.29464,3400.0,3399.7,0.29465]
[1735407256693,3.2078,3400.1,3399.7,0.29465]
[1735407256694,0.29464,3399.9,3399.7,0.29465]
[1735407256999,3.2078,3400.1,3399.7,0.29465]
[1735407257190,0.29464,3400.0,3399.5,0.4475]
[1735407257419,0.29464,3400.0,3399.7,0.29465]
[1735407257571,0.29464,3400.0,3399.5,0.4475]
[1735407257572,3.50243,3400.1,3399.9,0.29464]
[1735407257779,0.29463,3400.0,3399.7,0.29466]
[1735407258178,3.2078,3400.1,3399.7,0.29466]
[1735407258179,0.29465,3399.9,3399.7,0.29466]
[1735407258577,0.29466,3399.8,3399.6,0.29467]
[1735407258777,0.29467,3399.7,3399.5,0.74217]
[1735407258975,0.29467,3399.7,3399.5,0.4475]
[1735407259189,0.29467,3399.6,3399.5,0.4475]
[1735407259473,3.2078,3400.1,3399.5,0.4475]
[1735407259776,0.29467,3399.7,3399.5,0.74218]
[1735407259971,0.29467,3399.7,3399.5,0.4475]
[1735407260179,0.29466,3399.8,3399.5,0.4475]
[1735407260485,0.29462,3400.2,3399.9,0.29464]
[1735407260675,0.29462,3400.2,3399.7,3.2078]
[1735407260676,3.2078,3400.5,3399.7,3.2078]
[1735407260874,0.29461,3400.3,3400.1,0.29462]
[1735407261073,0.29461,3400.3,3400.0,0.29463]
[1735407261573,3.5024,3400.5,3400.1,0.4437]
[1735407261778,3.2078,3400.5,3400.4,0.2946]
[1735407262079,3.2078,3400.5,3400.1,0.4437]
[1735407262280,0.29462,3400.2,3400.1,0.4437]
[1735407262981,3.2078,3400.5,3400.1,0.4437]
[1735407263376,0.29454,3401.1,3400.7,0.29457]
[1735407263603,0.29454,3401.1,3400.8,3.2078]
[1735407263792,0.2964,3401.3,3400.8,3.2078]
[1735407264080,0.29451,3401.5,3401.1,0.29454]
[1735407264272,5.19048534,3401.8,3400.8,3.2078]
[1735407264273,0.29453,3401.2,3400.9,0.29455]
[1735407264473,0.2964,3401.7,3400.8,3.2078]
[1735407264781,0.29454,3401.1,3400.8,3.2078]
[1735407264979,0.29453,3401.3,3400.9,0.29455]
[1735407265176,1.98268534,3401.4,3400.8,3.2078]
[1735407265370,1.98268534,3401.4,3400.8,3.50236]
[1735407265606,0.29453,3401.3,3400.9,0.29455]
[1735407265873,0.29455,3401.1,3400.8,3.2078]
[1735407266078,0.29456,3400.9,3400.8,3.2078]
[1735407266782,0.29456,3400.9,3400.4,3.2078]
[1735407266783,0.29459,3400.5,3400.4,3.2078]
[1735407267480,0.29457,3400.8,3400.5,0.29459]
[1735407267674,5.28472981,3401.0,3400.4,3.2078]
[1735407267675,0.29456,3400.9,3400.4,3.2078]
[1735407267980,0.71546,3401.0,3400.7,0.29457]
[1735407268190,0.4209,3401.0,3400.4,3.2078]
[1735407268681,0.4209,3401.0,3400.4,3.5024]
[1735407269081,0.29458,3400.7,3400.5,0.29459]
[1735407270979,0.4209,3401.0,3400.4,3.2078]
[1735407271181,0.4209,3401.0,3400.4,3.50239]
[1735407271380,0.29459,3400.6,3400.4,3.50239]
[1735407272276,0.29459,3400.5,3400.4,3.2078]
[1735407272979,3.6287,3401.0,3400.4,3.2078]
[1735407273181,0.29457,3400.8,3400.6,0.29458]
[1735407273375,0.29457,3400.7,3400.4,3.2078]
[1735407273576,3.6287,3401.0,3400.5,0.29459]
[1735407273876,0.29457,3400.8,3400.6,0.29458]
[1735407274076,0.29458,3400.7,3400.5,0.29459]
[1735407274680,3.6287,3401.0,3400.4,3.2078]
[1735407274887,3.6287,3401.0,3400.5,0.29459]
[1735407275078,3.6287,3401.0,3400.4,3.5024]
[1735407275384,0.29458,3400.7,3400.5,0.2946]
[1735407275585,0.29458,3400.7,3400.4,3.2078]
[1735407275586,3.6287,3401.0,3400.4,3.2078]
[1735407275787,0.29459,3400.6,3400.4,0.2946]
[1735407276186,3.2078,3401.0,3400.1,0.4629]
[1735407276381,3.2078,3401.0,3400.5,0.29459]
[1735407276382,0.29458,3400.7,3400.5,0.29459]
[1735407277581,0.29458,3400.7,3400.1,0.4629]
[1735407277582,0.29458,3400.7,3400.6,0.29459]
[1735407277790,3.2078,3401.0,3400.6,0.29459]
[1735407278080,0.29458,3400.8,3400.6,0.29459]
[1735407278288,0.29458,3400.7,3400.5,0.29459]
[1735407279280,2.30895949,3400.9,3400.5,0.29459]
[1735407279490,0.29462,3400.2,3400.1,0.4629]
[1735407279680,0.29462,3400.2,3400.0,3.50243]
[1735407279979,0.29463,3400.1,3400.0,3.2078]
[1735407281684,2.60357949,3400.3,3400.0,3.2078]
[1735407281885,2.30895949,3400.3,3400.2,0.29462]
[1735407282082,3.46343924,3400.4,3400.0,3.2078]
[1735407282589,3.75804924,3400.4,3400.0,3.2078]
[1735407282791,3.75804924,3400.4,3400.2,0.29461]
[1735407282986,0.29461,3400.3,3400.1,0.29463]
[1735407283392,1.98035798,3400.4,3400.0,3.2078]
[1735407283683,0.29463,3400.1,3400.0,3.2078]
[1735407283892,0.29462,3400.3,3400.2,0.29462]
[1735407284097,0.29461,3400.4,3400.2,0.29462]
[1735407284592,0.29461,3400.4,3400.1,0.419]
[1735407284593,2.30413533,3400.2,3400.1,0.71363]
[1735407284793,2.30413533,3400.2,3400.1,0.419]
[1735407284987,2.59875533,3400.2,3400.1,0.419]
[1735407285290,2.30413533,3400.2,3400.1,0.71363]
[1735407285886,3.2078,3400.5,3400.1,0.71363]
[1735407286087,0.29462,3400.2,3400.1,0.71363]
[1735407286288,0.29462,3400.2,3400.1,0.419]
[1735407286690,0.29463,3400.1,3400.0,3.2078]
[1735407288997,1.6570621,3400.3,3400.0,3.2078]
[1735407289292,1.6570621,3400.3,3400.2,0.29462]
[1735407289293,0.29461,3400.3,3400.2,0.29462]
[1735407289495,0.29461,3400.4,3400.0,3.2078]
[1735407289796,0.29461,3400.3,3400.2,0.29462]
[1735407290591,3.2078,3400.5,3400.0,3.2078]
[1735407290790,0.29462,3400.3,3400.2,0.29462]
[1735407290991,3.2078,3400.5,3400.0,3.2078]
[1735407291191,0.29462,3400.2,3400.1,0.29463]
[1735407291401,0.29463,3400.1,3400.0,3.50244]
[1735407291595,0.29463,3400.1,3400.0,3.2078]
[1735407293095,2.76473533,3400.2,3399.6,3.2078]
[1735407293296,0.29466,3399.7,3399.6,3.2078]
[1735407293693,0.29466,3399.7,3399.6,3.50247]
[1735407293999,0.29466,3399.7,3399.6,3.2078]
[1735407296303,1.6570621,3399.9,3399.3,0.8776]
[1735407296504,0.29469,3399.4,3399.3,0.8776]
[1735407298311,1.6570621,3399.5,3399.1,3.2078]
[1735407298505,1.6570621,3399.5,3398.7,0.4603]
[1735407298506,0.29474,3398.9,3398.7,0.75505]
[1735407298704,1.6570621,3399.2,3398.7,0.75505]
[1735407298705,0.29474,3398.8,3398.7,0.4603]
[1735407300106,1.6570621,3399.2,3398.5,0.4268]
[1735407300401,1.9518221,3398.6,3398.5,0.4268]
[1735407300595,0.29476,3398.6,3398.5,0.4268]
[1735407300795,5.12465231,3398.9,3398.5,0.4268]
[1735407301295,0.29476,3398.6,3398.5,0.4268]
[1735407301700,3.46759021,3398.9,3398.5,0.4268]
[1735407302000,2.60594288,3399.0,3398.8,3.50254]
[1735407302199,2.31121288,3399.0,3398.9,3.2078]
[1735407302400,0.29475,3398.8,3398.6,0.29476]
[1735407302596,0.29473,3398.9,3398.5,3.6346]
[1735407302803,0.29473,3398.9,3398.7,0.29475]
[1735407303006,2.31121288,3399.0,3398.5,3.6346]
[1735407303208,2.31121288,3399.0,3398.9,3.50253]
[1735407303209,2.60594288,3399.0,3398.9,3.50253]
[1735407303404,0.29473,3399.0,3398.9,3.2078]
[1735407304300,0.29477,3398.5,3398.4,3.2078]
[1735407304704,0.29477,3398.6,3398.4,3.2078]
[1735407304901,0.29476,3398.6,3398.4,3.50257]
[1735407305101,0.29477,3398.5,3398.4,3.2078]
[1735407305503,0.4587,3398.9,3398.4,3.2078]
[1735407305705,1.6570621,3399.1,3398.4,3.2078]
[1735407305904,2.31121288,3399.2,3398.4,3.2078]
[1735407306107,0.29475,3398.8,3398.6,0.29476]
[1735407306304,0.29477,3398.5,3398.4,3.2078]
[1735407306504,1.6570621,3399.1,3398.4,3.2078]
[1735407306799,2.31121288,3399.2,3399.1,0.29472]
[1735407307204,2.60592288,3399.2,3399.1,3.2078]
[1735407307602,0.29471,3399.2,3399.1,3.2078]
[1735407307805,0.29474,3398.8,3398.3,0.4563]
[1735407308007,2.3938221,3399.3,3398.6,3.2078]
[1735407308310,0.29475,3398.7,3398.6,3.2078]
[1735407309309,0.29475,3398.7,3398.3,0.4563]
[1735407309310,0.29478,3398.4,3398.3,0.4563]
[1735407310004,0.29478,3398.4,3397.5,6.83191091]
[1735407310005,0.29482,3397.9,3397.8,0.29483]
[1735407310203,0.29477,3398.5,3397.8,0.73708]
[1735407310506,0.29477,3398.5,3398.3,0.29478]
[1735407310905,0.29477,3398.5,3398.4,0.866]
[1735407311406,0.29477,3398.5,3398.4,0.4282]
[1735407313213,0.2948,3398.3,3398.1,0.4378]
[1735407313405,0.2948,3398.1,3398.0,3.2078]
[1735407314313,0.29482,3397.9,3397.8,0.4552]
[1735407315117,0.29485,3397.6,3397.5,3.2078]
[1735407315609,0.29485,3397.6,3397.2,1.19498]
[1735407315610,0.29488,3397.2,3397.1,3.2078]
[1735407316505,2.1177621,3398.0,3397.1,3.2078]
[1735407316701,0.4607,3398.0,3397.5,3.2078]
[1735407316909,3.96827498,3398.6,3398.1,0.2948]
[1735407317104,2.73581288,3398.6,3397.9,3.2078]
[1735407317415,2.31121288,3398.6,3398.4,0.29477]
[1735407317607,2.31121288,3398.2,3398.1,0.2948]
[1735407318808,0.2948,3398.1,3398.0,0.4454]
[1735407320008,0.2948,3398.2,3398.1,0.2948]
[1735407320207,3.655,3398.4,3398.0,0.4454]
[1735407320409,0.4472,3398.4,3398.0,0.4454]
[1735407320609,0.2948,3398.2,3398.0,0.74021]
[1735407320806,0.29475,3398.7,3398.5,0.29477]
[1735407321118,3.46759021,3399.1,3398.6,3.2078]
[1735407321311,3.46759021,3399.1,3398.9,0.29473]
[1735407321616,2.31121288,3399.4,3398.7,1.3654]
[1735407321818,0.29473,3399.0,3398.7,1.19995]
[1735407322116,0.29474,3398.8,3398.7,0.9052]
[1735407322311,0.29471,3399.2,3398.9,0.29473]
[1735407322517,0.29471,3399.2,3398.7,0.9052]
[1735407322717,4.8648621,3399.5,3398.7,0.9052]
[1735407323018,0.29472,3399.1,3398.8,0.29474]
[1735407323215,4.8648621,3399.5,3398.7,0.9052]
[1735407323417,0.29474,3398.9,3398.7,0.9052]
[1735407323618,0.29473,3399.0,3398.7,1.19995]
[1735407323915,4.8648621,3399.5,3398.7,0.9052]
[1735407324121,0.2947,3399.4,3399.1,0.29471]
[1735407324417,0.29471,3399.3,3398.7,1.3269]
[1735407324812,0.29471,3399.3,3399.0,0.29472]
[1735407325221,0.29471,3399.3,3399.0,3.50252]
[1735407325522,2.31121288,3400.0,3399.0,3.2078]
[1735407325818,0.29465,3399.9,3399.5,0.29468]
[1735407326016,0.29465,3399.9,3399.6,0.8958]
[1735407326212,2.31121288,3400.0,3399.9,0.29465]
[1735407326614,1.9516721,3400.4,3400.0,0.29464]
[1735407327014,1.6570621,3400.4,3400.1,0.29462]
[1735407327217,1.6570621,3400.4,3400.2,0.4532]
[1735407327812,0.29461,3400.4,3400.2,0.4532]
[1735407328018,0.29461,3400.3,3400.2,0.4532]
[1735407328412,0.4565,3400.7,3400.2,0.4532]
[1735407328613,0.29459,3400.6,3400.2,0.4532]
[1735407329120,0.4565,3400.7,3400.2,0.4532]
[1735407329319,0.29459,3400.6,3400.2,0.74782]
[1735407330021,5.18873302,3400.8,3400.2,0.4532]
[1735407330429,0.2946,3400.5,3400.2,0.4532]
[1735407331797,2.31121288,3400.4,3400.2,0.4532]
[1735407331804,2.31121288,3400.4,3400.2,0.74782]
[1735407331825,2.31121288,3400.4,3400.3,0.29461]
[1735407332620,3.46759021,3400.5,3400.2,0.4532]
[1735407332621,2.31121288,3400.5,3400.2,0.4532]
[1735407332929,2.31121288,3400.5,3400.4,0.2946]
[1735407333226,2.31121288,3400.5,3400.2,0.4532]
[1735407333591,0.29461,3400.3,3400.2,0.4532]
[1735407333833,0.4217,3400.5,3400.2,0.4532]
[1735407334319,0.29461,3400.4,3400.2,0.74782]
[1735407334421,0.4217,3400.5,3400.2,0.4532]
[1735407334721,2.31121288,3400.5,3400.2,0.4532]
[1735407334929,2.31121288,3400.5,3400.4,0.29459]
[1735407335921,0.29459,3400.6,3400.4,0.29459]
[1735407336118,2.31121288,3400.7,3400.2,0.4532]
[1735407336324,0.2946,3400.5,3400.4,0.2946]
[1735407337386,0.2946,3400.5,3400.2,0.4532]
[1735407337640,0.2946,3400.5,3400.3,0.29461]
[1735407337931,0.2946,3400.5,3400.4,0.2946]
[1735407338527,3.2078,3400.8,3400.2,0.4532]
[1735407338728,0.29459,3400.6,3400.2,0.4532]
[1735407338937,0.29459,3400.6,3400.5,0.29459]
[1735407339738,3.50238,3400.8,3400.4,0.2946]
[1735407339933,0.4217,3401.0,3400.3,3.2078]
[1735407340236,0.29457,3400.8,3400.6,0.29458]
[1735407340769,0.4217,3401.0,3400.7,0.29458]
[1735407340991,3.2078,3401.3,3400.3,2.94448]
[1735407341143,0.29454,3401.1,3400.9,0.29455]
[1735407341455,3.2078,3401.3,3401.2,0.29453]
[1735407341649,2.76511288,3401.6,3401.0,3.2078]
[1735407341930,3.05961288,3401.6,3401.4,0.29451]
[1735407342146,0.29452,3401.5,3401.2,0.29453]
[1735407342733,0.4539,3401.6,3401.2,0.29453]
[1735407342948,0.4539,3401.6,3401.1,0.4467]
[1735407343643,0.7484,3401.6,3401.4,0.29451]
[1735407344234,3.93119,3401.8,3401.6,0.29449]
[1735407344443,0.29452,3401.4,3401.2,0.29453]
[1735407345134,3.6367,3401.8,3401.1,0.8957]
[1735407345135,3.2078,3401.8,3401.1,0.8957]
[1735407345334,0.2945,3401.6,3401.4,0.29451]
[1735407345555,0.29451,3401.5,3401.3,0.29452]
[1735407345735,0.455,3401.7,3401.1,0.8957]
[1735407345936,0.2945,3401.6,3401.4,0.29451]
[1735407346337,0.455,3401.7,3401.1,0.8957]
[1735407346638,0.29454,3401.1,3401.0,3.2078]
[1735407347538,0.29458,3400.7,3400.5,0.4295]
[1735407347733,0.29459,3400.5,3400.3,0.29461]
[1735407347960,0.29458,3400.7,3400.5,0.29459]
[1735407348130,3.6628,3401.0,3400.2,3.2078]
[1735407348640,0.29459,3400.6,3400.4,0.2946]
[1735407349140,3.6628,3401.0,3400.2,3.2078]
[1735407349141,0.2946,3400.5,3400.3,0.29461]
[1735407349354,0.2946,3400.5,3400.3,0.2946]
[1735407349545,0.2946,3400.5,3400.3,0.29461]
[1735407350241,2.39298314,3400.9,3400.5,0.29459]
[1735407350242,0.29459,3400.6,3400.5,0.29459]
[1735407350932,0.29459,3400.6,3400.2,3.2078]
[1735407351157,0.2946,3400.5,3400.3,0.29461]
[1735407351339,1.65658314,3400.9,3400.2,3.2078]
[1735407351530,0.29458,3400.7,3400.6,0.29458]
[1735407351743,3.6628,3401.0,3400.9,0.29456]
[1735407351744,3.2078,3401.0,3400.9,0.29456]
[1735407352034,0.72593,3401.3,3401.1,0.29453]
[1735407352241,0.29454,3401.1,3401.0,0.4314]
[1735407352446,0.29456,3400.9,3400.7,0.29457]
[1735407352647,0.29458,3400.6,3400.5,3.2078]
[1735407352933,0.29457,3400.8,3400.6,0.29458]
[1735407353640,0.29458,3400.7,3400.5,3.2078]
[1735407353839,0.29457,3400.8,3400.6,0.29458]
[1735407354035,0.29456,3400.9,3400.6,0.29458]
[1735407354234,0.29457,3400.8,3400.6,0.29458]
[1735407354639,0.4331,3401.0,3400.6,0.29458]
[1735407354838,0.29458,3400.7,3400.5,3.50239]
[1735407355631,0.29459,3400.6,3400.5,3.50239]
[1735407355837,0.29459,3400.6,3400.5,3.2078]
[1735407356140,0.29459,3400.6,3400.5,3.50239]
[1735407356740,0.4331,3401.0,3400.5,3.2078]
[1735407356937,0.4331,3401.0,3400.5,3.50239]
[1735407357143,0.29459,3400.6,3400.5,3.50239]
[1735407359247,0.29461,3400.3,3400.2,0.4314]
[1735407359445,0.29461,3400.3,3400.2,0.29462]
[1735407360648,0.29461,3400.4,3400.2,0.29462]
[1735407361046,0.29461,3400.4,3400.3,0.29461]
[1735407362347,0.2946,3400.4,3400.2,0.29461]
[1735407362836,0.2946,3400.4,3400.3,0.4256]
[1735407363343,3.2078,3400.9,3400.3,0.4256]
[1735407363547,0.29459,3400.5,3400.4,0.29459]
[1735407365648,0.29459,3400.5,3400.1,3.2078]
[1735407365649,0.29461,3400.2,3400.1,3.2078]
[1735407366050,3.2078,3400.3,3399.5,3.2078]
[1735407366351,0.29467,3399.5,3399.4,0.4447]
[1735407367752,3.2078,3399.8,3399.4,0.4447]
[1735407368047,3.50245,3399.8,3399.6,0.29466]
[1735407368245,0.29466,3399.7,3399.5,0.29467]
[1735407368452,0.29466,3399.7,3399.4,0.4447]
[1735407368453,3.2078,3399.8,3399.4,0.4447]
[1735407368748,0.29467,3399.6,3399.4,0.73938]
[1735407369452,0.29467,3399.5,3399.4,0.4447]
[1735407369755,5.51901288,3399.8,3399.6,0.29466]
[1735407369944,5.81366288,3399.8,3399.4,0.4447]
[1735407370146,0.29466,3399.7,3399.5,0.29467]
[1735407370650,5.51901288,3399.8,3399.4,0.4447]
[1735407370854,5.51901288,3399.8,3399.5,0.29467]
[1735407371050,0.29466,3399.7,3399.5,0.29467]
[1735407371246,0.29466,3399.6,3399.4,0.73938]
[1735407371450,3.2078,3399.8,3399.4,3.6525]
[1735407371651,0.29466,3399.6,3399.4,3.94718]
[1735407372676,0.29467,3399.5,3399.4,3.6525]
[1735407373456,0.29467,3399.6,3399.4,3.94718]
[1735407373661,2.31121288,3399.7,3399.4,3.6525]
[1735407373846,0.29467,3399.6,3399.4,3.94717]
[1735407375048,0.29467,3399.5,3399.4,3.6525]
[1735407375456,0.29467,3399.5,3399.4,0.4447]
[1735407375753,2.31121288,3399.8,3399.4,0.4447]
[1735407375943,2.31121288,3400.0,3399.4,0.4447]
[1735407376148,0.29467,3399.5,3399.4,0.4447]
[1735407378944,3.04781288,3399.9,3399.8,0.29465]
[1735407378945,2.31121288,3399.9,3399.8,0.29465]
[1735407379660,2.31121288,3399.9,3399.8,1.14725]
[1735407379854,0.29463,3400.0,3399.9,0.29463]
[1735407380358,0.29463,3400.0,3399.9,0.74993]
[1735407380755,3.2078,3400.1,3400.0,0.29463]
[1735407380958,0.29461,3400.2,3400.1,0.29462]
[1735407381249,5.51901288,3400.5,3400.0,3.2078]
[1735407381250,3.2078,3400.5,3400.0,3.2078]
[1735407381562,3.2078,3400.5,3400.0,3.50243]
[1735407381563,0.29462,3400.1,3400.0,3.50243]
[1735407383553,0.29462,3400.1,3400.0,3.2078]
[1735407384664,0.29462,3400.1,3400.0,3.50243]
[1735407384853,0.29462,3400.2,3400.1,0.29461]
[1735407386957,0.2946,3400.4,3400.3,0.29459]
[1735407387262,0.2946,3400.4,3400.0,3.2078]
[1735407387263,0.29462,3400.3,3400.2,0.29461]
[1735407387556,2.31121288,3400.6,3400.5,0.29459]
[1735407387867,2.31121288,3400.6,3400.5,5.15897314]
[1735407388057,2.31121288,3400.6,3400.5,3.50239]
[1735407388555,2.60579288,3400.6,3400.5,3.2078]
[1735407388758,0.29463,3400.1,3400.0,0.29462]
[1735407389173,0.4622,3400.6,3400.0,3.2078]
[1735407389362,0.2946,3400.4,3400.3,0.29459]
[1735407390256,2.73331288,3400.7,3400.0,3.2078]
[1735407390462,0.29461,3400.3,3400.2,0.2946]
[1735407391585,0.4221,3400.7,3400.0,3.2078]
[1735407391752,0.29462,3400.1,3400.0,3.2078]
[1735407391967,0.73645,3400.6,3399.8,4.55897709]
[1735407391968,0.29464,3399.9,3399.8,4.55897709]
[1735407393170,0.4474,3400.0,3399.6,3.2078]
[1735407393355,0.29465,3399.7,3399.6,3.2078]
[1735407393559,0.29465,3399.7,3399.2,0.4569]
[1735407393560,0.29469,3399.3,3399.2,3.2078]
[1735407393854,0.29469,3399.3,3399.1,4.55897709]
[1735407393855,0.2947,3399.2,3399.1,4.55897709]
[1735407394566,0.7421,3399.2,3399.1,4.55897709]
[1735407395259,0.29472,3399.0,3398.9,3.2078]
[1735407399073,0.29473,3398.9,3398.6,0.29475]
[1735407399259,0.29471,3399.1,3398.7,0.29474]
[1735407399456,0.29472,3399.0,3398.7,0.29474]
[1735407400961,0.29473,3398.9,3398.7,0.29474]
[1735407402066,0.4474,3399.2,3398.4,3.2078]
[1735407402275,0.29476,3398.5,3398.4,3.2078]
[1735407402761,0.29475,3398.6,3398.4,3.50256]
[1735407403369,0.29476,3398.5,3398.4,3.50256]
[1735407403867,2.75861288,3399.2,3399.1,0.29471]
[1735407404064,2.31121288,3399.2,3399.1,0.29471]
[1735407404765,2.2624031,3399.3,3399.1,0.8675]
[1735407404960,2.3091652,3399.7,3399.2,3.5025]
[1735407405163,2.3091652,3399.7,3399.6,3.50246]
[1735407405874,2.2624031,3399.9,3399.8,0.29465]
[1735407406065,2.2624031,3399.9,3399.8,2.41173921]
[1735407406267,0.73728,3400.6,3400.5,0.29459]
[1735407406463,0.4427,3400.6,3400.5,0.29459]
[1735407406662,0.73728,3400.6,3400.5,0.29459]
[1735407407272,0.4427,3400.6,3400.5,0.29459]
[1735407407772,0.29453,3401.2,3401.1,0.29453]
[1735407408177,0.4532,3401.4,3400.8,3.2078]
[1735407408365,0.29455,3400.9,3400.8,3.2078]
[1735407408567,0.29455,3400.9,3400.0,2.39314314]
[1735407408568,0.29459,3400.5,3400.4,3.2078]
[1735407408766,0.29459,3400.5,3400.4,3.50239]
[1735407409470,0.29459,3400.5,3400.4,3.2078]
[1735407410912,0.29462,3400.1,3399.8,0.29464]
[1735407411766,4.86438314,3400.5,3399.6,3.2078]
[1735407411965,0.29461,3400.2,3399.6,3.2078]
[1735407412965,0.29461,3400.2,3400.0,0.29463]
[1735407413367,4.86438314,3400.5,3400.0,0.29463]
[1735407413590,0.2946,3400.4,3400.1,0.29461]
[1735407413874,3.2078,3400.5,3399.6,3.2078]
[1735407414403,0.29463,3400.1,3399.8,0.29464]
[1735407414569,0.29462,3400.2,3400.0,3.2078]
[1735407414767,0.29462,3400.2,3399.9,0.29463]
[1735407414970,0.29463,3400.0,3399.7,0.29465]
[1735407415586,0.29463,3400.0,3399.8,0.29465]
[1735407415775,0.29462,3400.1,3399.8,0.29465]
[1735407415976,0.2946,3400.4,3400.1,0.29461]
[1735407416172,3.2078,3400.5,3399.6,3.2078]
[1735407416405,0.29462,3400.2,3399.9,0.29464]
[1735407416572,0.29461,3400.3,3400.0,3.50242]
[1735407417370,0.2946,3400.4,3400.1,0.29461]
[1735407417571,0.2946,3400.4,3400.1,0.29462]
[1735407417867,0.29462,3400.1,3399.6,3.2078]
[1735407418074,3.2078,3400.5,3399.9,0.29463]
[1735407418075,0.29462,3400.2,3399.9,0.29463]
[1735407418271,0.29462,3400.2,3399.6,3.2078]
[1735407418877,0.2946,3400.4,3400.1,0.29461]
[1735407419178,0.8719,3400.7,3400.1,0.29461]
[1735407419179,4.61791899,3400.8,3400.7,0.29457]
[1735407419392,4.61791899,3400.8,3400.7,3.50237]
[1735407419692,4.61791899,3400.8,3400.7,3.2078]
[1735407419880,4.61791899,3400.8,3400.7,3.50237]
[1735407420083,4.91247899,3400.8,3400.7,3.2078]
[1735407420283,4.61791899,3400.8,3400.7,3.2078]
[1735407420583,0.29456,3400.8,3400.7,3.2078]
[1735407421483,0.29458,3400.7,3400.4,0.29459]
[1735407421780,0.29458,3400.6,3400.4,0.29459]
[1735407421979,3.2078,3401.0,3400.5,3.50238]
[1735407422174,2.82461314,3401.2,3400.5,3.50238]
[1735407422367,2.82461314,3401.2,3400.5,3.2078]
[1735407422368,2.08828314,3401.2,3400.5,3.2078]
[1735407422777,0.29454,3401.1,3400.9,0.29455]
[1735407422980,0.4317,3401.2,3400.5,3.2078]
[1735407423181,8.05614787,3401.4,3401.3,0.29452]
[1735407423484,3.2078,3401.4,3400.6,2.39303314]
[1735407423876,3.2078,3401.4,3400.6,1.65658314]
[1735407424080,3.2078,3401.4,3401.2,0.29452]
[1735407424499,3.50231,3401.4,3401.2,0.29452]
[1735407425279,3.2078,3401.4,3400.6,1.65658314]
[1735407425576,0.2945,3401.5,3401.3,3.2078]
[1735407425782,0.29449,3401.6,3401.3,3.2078]
[1735407426083,0.2945,3401.5,3401.4,0.29451]
[1735407426281,0.2945,3401.5,3401.3,3.50231]
[1735407428177,0.855,3401.7,3401.3,3.2078]
[1735407428178,0.422,3401.7,3401.3,3.2078]
[1735407428483,0.422,3401.7,3401.6,0.29449]
[1735407429576,3.95446,3401.9,3401.3,3.94409]
[1735407429781,3.95446,3401.9,3401.8,0.29447]
[1735407429782,3.66,3401.9,3401.8,0.29447]
[1735407430389,4.61791899,3402.2,3401.5,2.39282314]
[1735407430579,4.61791899,3402.2,3402.1,0.29445]
[1735407430976,4.61791899,3402.2,3401.6,0.73623]
[1735407431176,4.91235899,3402.2,3402.1,0.29445]
[1735407431379,4.91235899,3402.2,3401.6,0.73623]
[1735407431591,0.29444,3402.2,3402.1,0.29445]
[1735407432478,0.4361,3402.6,3401.7,3.2078]
[1735407432785,0.29443,3402.3,3402.2,0.29444]
[1735407433084,0.4361,3402.6,3401.7,3.2078]
[1735407433280,1.17213,3402.6,3401.7,3.2078]
[1735407433484,0.29444,3402.2,3402.1,0.29444]
[1735407433678,0.29444,3402.2,3402.1,3.2078]
[1735407434076,0.29444,3402.2,3402.1,3.50225]
[1735407434685,0.29444,3402.2,3402.1,3.2078]
[1735407434881,0.29444,3402.2,3402.1,3.50225]
[1735407435394,0.29443,3402.3,3402.2,0.29443]
[1735407436882,0.29443,3402.4,3402.3,0.29443]
[1735407437084,0.29442,3402.5,3402.4,0.29442]